fUSD/lending_fUSD_20260108
["ID","MTS","AMOUNT","RATE_DAILY","PERIOD"]
[401081695,1767910245183,-2000.0,0.00017099,2]
[401081697,1767910245192,-2000.0,0.00017099,2]
[401081699,1767910245202,-500.0,0.00017099,2]
[401081701,1767910245212,-500.0,0.00017099,2]
[401081703,1767910245222,-250.0,0.00017099,2]
[401081705,1767910245231,-500.0,0.00017099,2]
[401081707,1767910245240,-250.0,0.00017099,2]
[401081709,1767910245250,-500.0,0.00017099,2]
[401081711,1767910245259,-250.0,0.00017099,2]
[401081713,1767910245268,-500.0,0.00017099,2]
[401081715,1767910245277,-250.0,0.00017099,2]
[401081717,1767910245286,-500.0,0.00017099,2]
[401081719,1767910245295,-250.0,0.00017099,2]
[401081721,1767910245304,-500.0,0.00017099,2]
[401081723,1767910245314,-250.0,0.00017099,2]
[401081725,1767910245325,-500.0,0.00017099,2]
[401081727,1767910245335,-250.0,0.00017099,2]
[401081729,1767910245344,-500.0,0.00017099,2]
[401081731,1767910245353,-250.0,0.00017099,2]
[401081733,1767910245369,-500.0,0.00017099,2]
[401081735,1767910245391,-250.0,0.00017099,2]
[401081737,1767910245405,-500.0,0.00017099,2]
[401081739,1767910245417,-250.0,0.00017099,2]
[401081741,1767910245427,-500.0,0.00017099,2]
[401081743,1767910245437,-500.0,0.00017099,2]
[401081745,1767910245447,-250.0,0.00017099,2]
[401081747,1767910245457,-500.0,0.00017099,2]
[401081749,1767910245467,-250.0,0.00017099,2]
[401081752,1767910245477,-151.0,0.00017099,2]
[401081753,1767910245487,-500.0,0.00017099,2]
[401081754,1767910245496,-500.0,0.00017099,2]
[401081755,1767910245505,-500.0,0.00017099,2]
[401081756,1767910245515,-500.0,0.00017099,2]
[401081757,1767910245523,-500.0,0.00017099,2]
[401081758,1767910245532,-500.0,0.00017099,2]
[401081759,1767910245542,-500.0,0.00017099,2]
[401081760,1767910245551,-500.0,0.00017099,2]
[401081761,1767910245560,-500.0,0.00017099,2]
[401081762,1767910245569,-500.0,0.00017099,2]
[401081763,1767910245580,-20452.74518303,0.000171,2]
[401081764,1767910245589,-1000.0,0.000171,2]
[401081765,1767910245599,-150.0,0.0001711,2]
[401081766,1767910245608,-213.0,0.0001711,2]
[401081768,1767910245620,-302.46,0.0001711,2]
[401081770,1767910245630,-350.94134188,0.0001711,2]
[401081772,1767910245640,-1000.0,0.00017112,2]
[401081774,1767910245649,-1000.0,0.00017141,2]
[401081777,1767910245658,-1000.0,0.00017147,2]
[401081779,1767910245668,-1378.0,0.00017154,2]
[401081781,1767910245677,-1316.20759869,0.00017154,2]
[401081783,1767910245687,-171.35,0.00017178,2]
[401081785,1767910245699,-326.12,0.00017178,2]
[401081787,1767910245708,-1000.0,0.00017188,2]
[401081789,1767910245718,-661.23,0.00017208,2]
[401081791,1767910245727,-1000.0,0.0001724,2]
[401081793,1767910245736,-3180.75325131,0.00017247,2]
[401081795,1767910245745,-9851.21459524,0.00017249,2]
[401081797,1767910245755,-150.0,0.00017255,2]
[401081799,1767910245764,-150.0,0.00017255,2]
[401081801,1767910245774,-150.0,0.00017256,2]
[401081803,1767910245785,-150.0,0.00017259,2]
[401081805,1767910245795,-4391.8,0.0001726,2]
[401081807,1767910245804,-1000.0,0.0001727,2]
[401081809,1767910245814,-1000.0,0.00017273,2]
[401081839,1767910246070,-1000.0,0.00017273,2]
[401081841,1767910246081,-433.0,0.00017293,2]
[401081843,1767910246091,-560.21304861,0.00017295,2]
[401081845,1767910246100,-1000.0,0.000173,2]
[401081847,1767910246110,-1000.0,0.00017303,2]
[401081849,1767910246119,-1000.0,0.00017304,2]
[401081851,1767910246128,-1000.0,0.00017313,2]
[401081853,1767910246138,-1000.0,0.00017314,2]
[401081855,1767910246147,-31124.03182365,0.00017324,2]
[401081857,1767910246156,-3641.87687968,0.00017324,2]
[401081859,1767910246165,-833.0,0.0001736,2]
[401081860,1767910246175,-162.0,0.0001736,2]
[401081861,1767910246184,-162.0,0.0001736,2]
[401081862,1767910246194,-162.0,0.0001736,2]
[401081863,1767910246203,-162.0,0.0001736,2]
[401081864,1767910246212,-162.0,0.0001736,2]
[401081865,1767910246221,-162.0,0.0001736,2]
[401081866,1767910246230,-162.0,0.0001736,2]
[401081867,1767910246239,-833.0,0.0001736,2]
[401081868,1767910246248,-552.0,0.0001736,2]
[401081869,1767910246258,-150.0,0.00017361,2]
[401081870,1767910246267,-4609.0,0.00017364,2]
[401081871,1767910246276,-150.0,0.00017369,2]
[401081872,1767910246285,-1000.0,0.0001737,2]
[401081873,1767910246295,-1378.0,0.00017373,2]
[401081874,1767910246305,-1000.0,0.00017384,2]
[401081875,1767910246314,-150.0,0.00017389,2]
[401081876,1767910246324,-993.92526434,0.00017395,2]
[401081877,1767910246334,-272.2442752,0.00017396,2]
[401081878,1767910246346,-1000.0,0.00017397,2]
[401081879,1767910246362,-1000.0,0.000174,2]
[401081880,1767910246372,-1000.0,0.00017428,2]
[401081881,1767910246382,-1000.0,0.00017474,2]
[401081882,1767910246391,-1000.0,0.00017493,2]
[401081883,1767910246400,-560.21304861,0.00017496,2]
[401081884,1767910246410,-150.0,0.00017498,2]
[401081885,1767910246420,-2000.0,0.000175,2]
[401081886,1767910246430,-1193.73266833,0.00017502,2]
[401081887,1767910246440,-446.20279251,0.00017502,2]
[401081888,1767910246450,-150.0,0.00017534,2]
[401081889,1767910246459,-4391.8,0.00017534,2]
[401081890,1767910246469,-1042.30773041,0.00017534,2]
[401081891,1767910246478,-1000.0,0.00017538,2]
[401081892,1767910246488,-150.0,0.00017539,2]
[401081893,1767910246498,-150.0,0.00017562,2]
[401081894,1767910246507,-1000.0,0.00017563,2]
[401081895,1767910246516,-1000.0,0.00017563,2]
[401081896,1767910246526,-1000.0,0.00017565,2]
[401081897,1767910246536,-157.72323008,0.00017569,2]
[401081898,1767910246545,-1000.0,0.00017573,2]
[401081899,1767910246554,-150.0,0.00017591,2]
[401081900,1767910246566,-500.0,0.00017597,2]
[401081901,1767910246578,-516.50114519,0.00017597,2]
[401081902,1767910246587,-500.0,0.00017597,2]
[401081903,1767910246596,-500.0,0.00017597,2]
[401081904,1767910246605,-640.29,0.00017597,2]
[401081905,1767910246615,-500.0,0.00017597,2]
[401081906,1767910246628,-1000.0,0.00017605,2]
[401081908,1767910246637,-1000.0,0.00017611,2]
[401081909,1767910246647,-1000.0,0.00017611,2]
[401081911,1767910246656,-245.0,0.00017628,2]
[401081913,1767910246666,-15030.58394086,0.0001764,2]
[401081916,1767910246676,-1000.0,0.00017643,2]
[401081918,1767910246685,-151.0,0.00017647,2]
[401081920,1767910246696,-293.26916709,0.00017647,2]
[401081922,1767910246705,-373.07297731,0.00017647,2]
[401081924,1767910246717,-574.12855637,0.00017647,2]
[401081926,1767910246726,-151.0,0.00017647,2]
[401081928,1767910246735,-1000.0,0.0001767,2]
[401081930,1767910246744,-162.0,0.0001768,2]
[401081932,1767910246754,-162.0,0.0001768,2]
[401081934,1767910246763,-162.0,0.0001768,2]
[401081936,1767910246773,-833.0,0.0001768,2]
[401081939,1767910246782,-833.0,0.0001768,2]
[401081941,1767910246791,-833.0,0.0001768,2]
[401081943,1767910246807,-162.0,0.0001768,2]
[401081945,1767910246819,-162.0,0.0001768,2]
[401081947,1767910246829,-833.0,0.0001768,2]
[401081949,1767910246838,-833.0,0.0001768,2]
[401081951,1767910246847,-833.0,0.0001768,2]
[401081953,1767910246857,-833.0,0.0001768,2]
[401081955,1767910246866,-25000.0,0.00017689,3]
[401081957,1767910246875,-151.0,0.00017695,2]
[401081959,1767910246884,-150.0,0.00017695,2]
[401081961,1767910246894,-25000.0,0.00017698,3]
[401081963,1767910246903,-560.21304861,0.00017698,2]
[401081965,1767910246913,-4280.56502844,0.000177,2]
[401081967,1767910246922,-1000.0,0.000177,2]
[401081969,1767910246932,-1000.0,0.00017701,2]
[401081971,1767910246942,-1000.0,0.00017704,2]
[401081973,1767910246951,-25000.0,0.00017706,3]
[401081975,1767910246961,-1000.0,0.00017709,2]
[401081977,1767910246970,-1000.0,0.00017711,2]
[401081979,1767910246980,-25000.0,0.00017715,3]
[401081982,1767910246990,-25000.0,0.00017724,3]
[401081984,1767910246999,-1000.0,0.00017728,2]
[401081986,1767910247008,-25000.0,0.00017733,3]
[401081988,1767910247018,-1000.0,0.00017734,2]
[401081990,1767910247027,-150.0,0.0001774,2]
[401081992,1767910247037,-25000.0,0.00017742,3]
[401081994,1767910247047,-500.0,0.00017749,2]
[401081996,1767910247056,-500.0,0.00017749,2]
[401081998,1767910247065,-500.0,0.00017749,2]
[401082000,1767910247075,-640.29,0.00017749,2]
[401082002,1767910247084,-478.33803571,0.00017749,2]
[401082004,1767910247094,-150.0,0.0001775,2]
[401082006,1767910247104,-1000.0,0.0001775,2]
[401082008,1767910247114,-25000.0,0.0001775,3]
[401082010,1767910247123,-25000.0,0.00017759,3]
[401082012,1767910247132,-500.0,0.00017766,2]
[401082014,1767910247141,-649.16,0.00017766,2]
[401082016,1767910247151,-25000.0,0.00017768,3]
[401082018,1767910247162,-1000.0,0.00017769,2]
[401082020,1767910247172,-25000.0,0.00017777,3]
[401082022,1767910247181,-581.31,0.00017779,2]
[401082024,1767910247191,-172.20960609,0.00017782,2]
[401082026,1767910247200,-500.0,0.00017782,2]
[401082028,1767910247209,-500.0,0.00017782,2]
[401082030,1767910247219,-500.0,0.00017782,2]
[401082032,1767910247228,-500.0,0.00017782,2]
[401082034,1767910247237,-1000.0,0.00017782,2]
[401082036,1767910247246,-640.29,0.00017782,2]
[401082039,1767910247265,-640.29,0.00017782,2]
[401082041,1767910247275,-640.29,0.00017782,2]
[401082043,1767910247285,-640.29,0.00017782,2]
[401082045,1767910247294,-25000.0,0.00017786,3]
[401082047,1767910247304,-316.0,0.00017791,2]
[401082049,1767910247314,-25000.0,0.00017794,3]
[401082051,1767910247324,-1000.0,0.00017798,2]
[401082053,1767910247334,-1000.0,0.000178,2]
[401082055,1767910247343,-500.0,0.00017803,2]
[401082057,1767910247353,-640.29,0.00017803,2]
[401082059,1767910247363,-25000.0,0.00017803,3]
[401082062,1767910247373,-4391.8,0.00017808,2]
[401082064,1767910247382,-25000.0,0.00017812,3]
[401082066,1767910247392,-1000.0,0.00017815,2]
[401082068,1767910247401,-1206.43464,0.0001782,2]
[401082070,1767910247411,-1206.43465,0.0001782,2]
[401082072,1767910247422,-758.96088212,0.0001782,2]
[401082074,1767910247432,-25000.0,0.00017821,3]
[401082076,1767910247442,-25000.0,0.0001783,3]
[401082078,1767910247451,-2563.74337966,0.0001783,2]
[401082080,1767910247461,-1206.43465,0.0001783,2]
[401082082,1767910247470,-25000.0,0.00017838,3]
[401082084,1767910247480,-150.0,0.00017847,2]
[401082086,1767910247489,-25000.0,0.00017847,3]
[401082088,1767910247499,-2000.0,0.00017855,2]
[401082090,1767910247509,-200.0,0.00017855,2]
[401082092,1767910247518,-200.0,0.00017856,2]
[401082094,1767910247528,-25000.0,0.00017856,3]
[401082096,1767910247538,-2000.0,0.00017856,2]
[401082098,1767910247548,-200.0,0.00017856,2]
[401082100,1767910247557,-200.0,0.00017856,2]
[401082102,1767910247567,-151.0,0.00017856,2]
[401082105,1767910247577,-151.0,0.00017856,2]
[401082107,1767910247588,-151.0,0.00017856,2]
[401082109,1767910247598,-374.563037,0.00017856,2]
[401082111,1767910247607,-374.563037,0.00017856,2]
[401082112,1767910247619,-374.563037,0.00017856,2]
[401082113,1767910247630,-374.563037,0.00017856,2]
[401082114,1767910247640,-1206.43465,0.0001786,2]
[401082115,1767910247649,-25000.0,0.00017865,3]
[401082116,1767910247659,-151.0,0.00017865,2]
[401082117,1767910247669,-151.0,0.00017865,2]
[401082118,1767910247679,-151.0,0.00017865,2]
[401082119,1767910247690,-1000.0,0.00017866,2]
[401082120,1767910247700,-1000.0,0.00017868,2]
[401082121,1767910247711,-500.0,0.00017873,2]
[401082122,1767910247720,-640.29,0.00017873,2]
[401082123,1767910247730,-25000.0,0.00017874,3]
[401082124,1767910247740,-1000.0,0.00017878,2]
[401082125,1767910247750,-1000.0,0.00017879,2]
[401082126,1767910247761,-1206.43464,0.0001788,2]
[401082127,1767910247770,-150.0,0.00017881,2]
[401082128,1767910247781,-25000.0,0.00017882,3]
[401082129,1767910247791,-150.0,0.00017883,2]
[401082130,1767910247802,-1000.0,0.00017883,2]
[401082131,1767910247814,-1000.0,0.00017887,2]
[401082132,1767910247823,-25000.0,0.00017891,3]
[401082133,1767910247833,-10000.0,0.00017893,2]
[401082134,1767910247842,-150.0,0.00017896,2]
[401082135,1767910247852,-1000.0,0.00017898,2]
[401082136,1767910247862,-7605.86069593,0.000179,3]
[401082137,1767910247871,-250.08900026,0.000179,2]
[401082138,1767910247881,-25000.0,0.000179,3]
[401082139,1767910247890,-196.054169,0.000179,2]
[401082140,1767910247900,-196.054169,0.000179,2]
[401082141,1767910247909,-196.054169,0.000179,2]
[401082142,1767910247918,-196.054169,0.000179,2]
[401082143,1767910247928,-196.927993,0.000179,2]
[401082144,1767910247938,-196.927993,0.000179,2]
[401082145,1767910247947,-196.927993,0.000179,2]
[401082146,1767910247957,-196.927993,0.000179,2]
[401082147,1767910247966,-151.0,0.000179,2]
[401082148,1767910247976,-151.0,0.000179,2]
[401082149,1767910247986,-151.0,0.000179,2]
[401082150,1767910247996,-9851.21459524,0.000179,2]
[401082151,1767910248006,-190.04272048,0.000179,3]
[401082152,1767910248015,-306.94008536,0.000179,2]
[401082153,1767910248025,-272.2442752,0.000179,2]
[401082154,1767910248034,-26513.46810758,0.000179,2]
[401082155,1767910248044,-560.21304861,0.000179,2]
[401082156,1767910248054,-282.08498443,0.000179,2]
[401082157,1767910248065,-458.86980404,0.000179,2]
[401082158,1767910248074,-648.06111517,0.000179,2]
[401082159,1767910248084,-847.04791815,0.000179,2]
[401082160,1767910248093,-17325.0,0.000179,2]
[401082161,1767910248102,-1100.0,0.00017904,7]
[401082162,1767910248111,-3000.0,0.00017904,7]
[401082163,1767910248121,-1000.0,0.00017904,2]
[401082164,1767910248130,-1206.43465,0.0001791,2]
[401082165,1767910248139,-1000.0,0.00017911,2]
[401082166,1767910248149,-1000.0,0.0001792,2]
[401082167,1767910248158,-1000.0,0.0001792,2]
[401082168,1767910248167,-177.4888516,0.00017926,3]
[401082169,1767910248176,-1000.0,0.00017926,2]
[401082170,1767910248190,-1000.0,0.00017946,2]
[401082171,1767910248200,-160.43,0.00017959,2]
[401082172,1767910248210,-500.0,0.0001797,2]
[401082173,1767910248220,-1000.0,0.0001797,2]
[401082174,1767910248230,-500.0,0.0001797,2]
[401082175,1767910248240,-1000.0,0.0001797,2]
[401082176,1767910248250,-500.0,0.0001797,2]
[401082177,1767910248259,-1000.0,0.0001797,2]
[401082178,1767910248269,-500.0,0.0001797,2]
[401082179,1767910248279,-1000.0,0.0001797,2]
[401082180,1767910248288,-500.0,0.0001797,2]
[401082181,1767910248298,-500.0,0.0001797,2]
[401082182,1767910248308,-584.41347442,0.0001797,2]
[401082183,1767910248318,-1000.0,0.0001797,2]
[401082184,1767910248328,-1000.0,0.0001797,2]
[401082185,1767910248337,-1000.0,0.0001797,2]
[401082186,1767910248347,-1000.0,0.0001797,2]
[401082187,1767910248357,-1446.54474908,0.0001797,2]
[401082188,1767910248366,-8200.0,0.00017973,2]
[401082189,1767910248375,-162.47633728,0.00017973,2]
[401082190,1767910248385,-500.0,0.00017973,2]
[401082191,1767910248521,-500.0,0.00017973,2]
[401082192,1767910248530,-513.02244381,0.00017973,2]
[401082193,1767910248539,-500.17178809,0.00017973,2]
[401082194,1767910248549,-150.49880534,0.00017973,2]
[401082195,1767910248559,-500.0,0.00017973,2]
[401082196,1767910248568,-500.0,0.00017973,2]
[401082197,1767910248579,-501.05253604,0.00017973,2]
[401082198,1767910248591,-426.73386812,0.00017973,2]
[401082199,1767910248603,-159.904,0.00017973,2]
[401082200,1767910248613,-160.89060159,0.00017973,2]
[401082201,1767910248627,-500.0,0.00017973,2]
[401082202,1767910248636,-504.45710441,0.00017973,2]
[401082203,1767910248647,-500.0,0.00017973,2]
[401082204,1767910248656,-478.51992038,0.00017973,2]
[401082205,1767910248668,-500.0,0.00017973,2]
[401082206,1767910248677,-500.0,0.00017973,2]
[401082207,1767910248689,-500.0,0.00017973,2]
[401082208,1767910248701,-500.0,0.00017973,2]
[401082209,1767910248711,-150.0,0.00017973,2]
[401082210,1767910248721,-500.15127353,0.00017973,2]
[401082211,1767910248731,-501.02575149,0.00017973,2]
[401082212,1767910248740,-500.29277744,0.00017973,2]
[401082213,1767910248749,-500.0,0.00017973,2]
[401082214,1767910248758,-568.48476984,0.00017973,2]
[401082215,1767910248767,-500.0,0.00017973,2]
[401082216,1767910248776,-500.0,0.00017973,2]
[401082217,1767910248784,-500.0,0.00017973,2]
[401082218,1767910248793,-500.0,0.00017973,2]
[401082219,1767910248802,-500.0,0.00017973,2]
[401082220,1767910248811,-385.16009683,0.00017973,2]
[401082221,1767910248821,-500.0,0.00017973,2]
[401082222,1767910248830,-500.0,0.00017973,2]
[401082223,1767910248839,-501.25774686,0.00017973,2]
[401082224,1767910248848,-500.0,0.00017973,2]
[401082225,1767910248857,-500.0,0.00017973,2]
[401082226,1767910248866,-500.0,0.00017973,2]
[401082227,1767910248876,-500.62899828,0.00017973,2]
[401082228,1767910248885,-501.18870733,0.00017973,2]
[401082229,1767910248895,-160.81509317,0.00017973,2]
[401082230,1767910248907,-500.0,0.00017973,2]
[401082231,1767910248917,-150.0,0.00017973,2]
[401082232,1767910248931,-166.04276169,0.00017976,2]
[401082233,1767910248940,-1000.0,0.00017977,2]
[401082234,1767910248949,-500.0,0.0001798,2]
[401082235,1767910248958,-500.0,0.0001798,2]
[401082236,1767910248967,-500.0,0.0001798,2]
[401082237,1767910248977,-564.92009029,0.0001798,2]
[401082238,1767910248987,-1000.0,0.0001798,2]
[401082239,1767910248997,-640.29,0.0001798,2]
[401082240,1767910249006,-640.29,0.0001798,2]
[401082241,1767910249015,-640.29,0.0001798,2]
[401082242,1767910249024,-640.29,0.0001798,2]
[401082243,1767910249034,-405.0,0.00017988,2]
[401082244,1767910249044,-150.0,0.0001799,2]
[401082245,1767910249054,-893.22555293,0.0001799,2]
[401082246,1767910249064,-893.22555293,0.0001799,2]
[401082247,1767910249074,-433.0,0.00017991,2]
[401082248,1767910249083,-1000.0,0.00017991,2]
[401082249,1767910249092,-151.0,0.00017997,2]
[401082250,1767910249102,-151.0,0.00017997,2]
[401082251,1767910249111,-500.0,0.00017998,2]
[401082252,1767910249121,-649.16,0.00017998,2]
[401082253,1767910249131,-1000.0,0.00017998,2]
[401082254,1767910249140,-640.29,0.00017998,2]
[401082255,1767910249150,-265.93502062,0.00017999,2]
[401082256,1767910249159,-150.0,0.00017999,2]
[401082257,1767910249168,-1006.1979,0.00017999,2]
[401082258,1767910249177,-300.0,0.00017999,2]
[401082259,1767910249186,-666.0,0.00017999,2]
[401082260,1767910249196,-300.0,0.00017999,2]
[401082261,1767910249205,-300.0,0.00017999,2]
[401082262,1767910249214,-448.64136623,0.00017999,2]
[401082263,1767910249223,-300.0,0.00017999,2]
[401082264,1767910249233,-666.0,0.00017999,2]
[401082265,1767910249242,-500.0,0.00017999,2]
[401082266,1767910249252,-500.0,0.00017999,2]
[401082267,1767910249262,-500.0,0.00017999,2]
[401082268,1767910249271,-500.0,0.00017999,2]
[401082269,1767910249280,-500.0,0.00017999,2]
[401082270,1767910249289,-500.0,0.00017999,2]
[401082271,1767910249299,-500.0,0.00017999,2]
[401082272,1767910249308,-459.26722753,0.00017999,2]
[401082273,1767910249318,-649.16,0.00017999,2]
[401082274,1767910249327,-649.16,0.00017999,2]
[401082275,1767910249337,-649.16,0.00017999,2]
[401082276,1767910249348,-649.16,0.00017999,2]
[401082277,1767910249358,-649.16,0.00017999,2]
[401082278,1767910249369,-649.16,0.00017999,2]
[401082279,1767910249379,-649.16,0.00017999,2]
[401082280,1767910249388,-649.16,0.00017999,2]
[401082281,1767910249398,-649.16,0.00017999,2]
[401082282,1767910249408,-649.16,0.00017999,2]
[401082283,1767910249418,-649.16,0.00017999,2]
[401082284,1767910249428,-649.16,0.00017999,2]
[401082285,1767910249437,-649.16,0.00017999,2]
[401082286,1767910249447,-649.16,0.00017999,2]
[401082287,1767910249458,-649.16,0.00017999,2]
[401082288,1767910249469,-649.3677512,0.00017999,2]
[401082289,1767910249478,-300.0,0.00017999,2]
[401082290,1767910249489,-300.0,0.00017999,2]
[401082291,1767910249499,-666.0,0.00017999,2]
[401082292,1767910249508,-300.0,0.00017999,2]
[401082293,1767910249518,-640.29,0.00017999,2]
[401082294,1767910249527,-640.29,0.00017999,2]
[401082295,1767910249541,-640.29,0.00017999,2]
[401082296,1767910249552,-640.29,0.00017999,2]
[401082297,1767910249563,-640.29,0.00017999,2]
[401082298,1767910249572,-640.29,0.00017999,2]
[401082299,1767910249582,-640.29,0.00017999,2]
[401082300,1767910249592,-640.29,0.00017999,2]
[401082301,1767910249601,-640.29,0.00017999,2]
[401082302,1767910249611,-640.3813734,0.00017999,2]
[401082303,1767910249625,-300.0,0.00017999,2]
[401082304,1767910249636,-666.0,0.00017999,2]
[401082305,1767910249647,-300.0,0.00017999,2]
[401082306,1767910249657,-1792.77089946,0.00017999,2]
[401082307,1767910249667,-5970.77362135,0.00017999,2]
[401082308,1767910249676,-1000.0,0.00018,2]
[401082309,1767910249686,-836.47750939,0.00018,2]
[401082310,1767910249697,-2257651.71825599,0.00018,2]
[401082311,1767910250326,-673.07619436,0.00018,2]
[401082312,1767910250339,-2344.748022,0.00018,2]
[401082313,1767910250479,-6258.7835539,0.00018,2]
[401082314,1767910252090,-151.0,0.0001476,2]
[401082315,1767910252100,-169.453708,0.00017865,2]
[401082316,1767910252109,-111.76431815,0.00018,2]
[401082317,1767910252176,-1390.33418158,0.00018,2]
[401082318,1767910252188,-1439.50445757,0.00018,2]
[401082319,1767910252222,-3761.56884266,0.00018,2]
[401082320,1767910252234,-845.30631861,0.00018,2]
[401082321,1767910252245,-255.80595542,0.00018,2]
[401082322,1767910347901,637.0411116,0.000176,30]
[401082323,1767910481640,173.71,0.00010959,2]
[401082324,1767911096146,1944.48,6.256e-05,2]
[401082325,1767911096305,1944.48,6.572e-05,2]
[401082326,1767911096450,1944.48,6.889e-05,2]
[401082327,1767911096625,1944.48,7.205e-05,2]
[401082328,1767911096821,1944.48,7.521e-05,2]
[401082329,1767911097024,1944.48,7.838e-05,2]
[401082330,1767911097213,1944.48,8.154e-05,2]
[401082331,1767911097352,1944.48,8.47e-05,2]
[401082332,1767911097612,1944.48,8.787e-05,2]
[401082333,1767911098251,1944.48,9.103e-05,2]
[401082334,1767911098421,1944.48,9.419e-05,2]
[401082335,1767911098555,1944.48,9.736e-05,2]
[401082336,1767911098722,1944.48,0.00010052,2]
[401082337,1767911098830,1944.48,0.00010368,2]
[401082338,1767911098974,1944.48,0.00010685,2]
[401082339,1767911125184,1026.57022863,0.000108,2]
[401082340,1767911216122,-186.95953939,0.00011001,2]
[401082358,1767911432257,-1757.52046061,0.00011001,2]
[401082359,1767911432267,-362.90368333,0.0001111,2]
[401082360,1767911432276,-300.0,0.00011229,2]
[401082361,1767911432286,-1200.0,0.00011229,2]
[401082362,1767911432296,-300.0,0.00011229,2]
[401082363,1767911432306,-469.42082019,0.0001123,2]
[401082364,1767911432363,-11260.45347406,0.0001123,2]
[401082365,1767911432374,-9412.5,0.0001123,2]
[401082366,1767911432481,-328.4750411,0.0001123,2]
[401082367,1767911432494,-1046.270152,0.0001123,2]
[401082459,1767911437960,-155.15572809,0.00011229,2]
[401082461,1767911437969,-500.0,0.00011229,2]
[401082462,1767911437978,-500.80148648,0.00011229,2]
[401082463,1767911437987,-503.28319711,0.00011229,2]
[401082464,1767911437996,-500.0,0.00011229,2]
[401082465,1767911438004,-500.0,0.00011229,2]
[401082466,1767911438013,-500.0,0.00011229,2]
[401082467,1767911438022,-21.2569794,0.00011229,2]
[401082527,1767911438740,-382.14708737,0.00011229,2]
[401082529,1767911438751,-96.59593323,0.00011229,2]
[401082531,1767911438760,-521.27499076,0.00011229,2]
[401082533,1767911438769,-500.0,0.00011229,2]
[401082535,1767911438778,-500.0,0.00011229,2]
[401082537,1767911438787,-337.13330374,0.00011229,2]
[401082542,1767911438822,-162.86669626,0.00011229,2]
[401082544,1767911438832,-413.69070188,0.00011229,2]
[401082741,1767911440790,-86.30929812,0.00011229,2]
[401082743,1767911440800,-500.0,0.00011229,2]
[401082745,1767911440810,-500.0,0.00011229,2]
[401082747,1767911440819,-500.0,0.00011229,2]
[401082749,1767911440828,-500.0,0.00011229,2]
[401082751,1767911440837,-500.0,0.00011229,2]
[401082753,1767911440846,-500.0,0.00011229,2]
[401082755,1767911440855,-500.0,0.00011229,2]
[401082757,1767911440864,-500.0,0.00011229,2]
[401082759,1767911440873,-500.0,0.00011229,2]
[401082761,1767911440882,-500.0,0.00011229,2]
[401082763,1767911440891,-12712.44051265,0.0001123,2]
[401082765,1767911440900,-1944.48,0.00011318,2]
[401082767,1767911440909,-1852.42,0.00011483,2]
[401082769,1767911440918,-1944.48,0.00011634,2]
[401082771,1767911440927,-573.93093042,0.00011736,2]
[401082773,1767911440936,-176.53159947,0.00011736,2]
[401082775,1767911440944,-176.53159947,0.00011736,2]
[401082777,1767911440955,-168.00441332,0.00011736,2]
[401082779,1767911440965,-165.3896898,0.00011752,2]
[401082781,1767911440974,-630.43972718,0.00011752,2]
[401082783,1767911440983,-234.07241392,0.00011752,2]
[401082785,1767911440991,-187.0,0.00011752,2]